fUST/lending_fUST_20250816
["ID","MTS","AMOUNT","RATE_DAILY","PERIOD"]
[379618467,1755346241815,-500.0,0.00021917,3]
[379618468,1755346241824,-500.0,0.00021917,3]
[379618469,1755346241834,-500.0,0.00021917,3]
[379618470,1755346241846,-500.0,0.00021917,3]
[379618471,1755346241856,-424.05743557,0.00021917,3]
[379618472,1755346241865,-4462.77,0.00021917,3]
[379618473,1755346241875,-634.38,0.00021917,3]
[379618474,1755346241885,-480.0,0.00021917,3]
[379618475,1755346241894,-480.0,0.00021917,3]
[379618476,1755346241905,-480.0,0.00021917,3]
[379618477,1755346241915,-480.0,0.00021917,3]
[379618478,1755346241924,-480.0,0.00021917,3]
[379618479,1755346241934,-480.0,0.00021917,3]
[379618481,1755346241944,-480.0,0.00021917,3]
[379618483,1755346241953,-480.0,0.00021917,3]
[379618485,1755346241963,-480.0,0.00021917,3]
[379618487,1755346241973,-480.0,0.00021917,3]
[379618489,1755346241982,-10934.7,0.00021917,3]
[379618491,1755346241992,-714.49,0.00021917,3]
[379618493,1755346242001,-2097.02,0.00021917,3]
[379618495,1755346242011,-480.0,0.00021917,3]
[379618497,1755346242023,-1046.56,0.00021917,3]
[379618498,1755346242032,-480.0,0.00021917,3]
[379618500,1755346242042,-557.39188794,0.00021917,3]
[379618503,1755346242051,-480.0,0.00021917,3]
[379618504,1755346242061,-480.0,0.00021917,3]
[379618506,1755346242071,-480.0,0.00021917,3]
[379618508,1755346242081,-480.0,0.00021917,3]
[379618510,1755346242090,-4709.16,0.00021917,3]
[379618512,1755346242099,-480.0,0.00021917,3]
[379618514,1755346242108,-480.0,0.00021917,3]
[379618516,1755346242119,-480.0,0.00021917,3]
[379618518,1755346242128,-480.0,0.00021917,3]
[379618520,1755346242140,-480.0,0.00021917,3]
[379618523,1755346242152,-635.77,0.00021917,3]
[379618524,1755346242161,-732.88,0.00021917,3]
[379618526,1755346242171,-480.0,0.00021917,3]
[379618528,1755346242180,-480.0,0.00021917,3]
[379618530,1755346242189,-215.68093138,0.00021917,3]
[379618532,1755346242200,-400.0,0.00021917,3]
[379618535,1755346242209,-1114.15,0.00021917,3]
[379618536,1755346242219,-480.0,0.00021917,3]
[379618538,1755346242228,-460.0,0.00021917,3]
[379618540,1755346242237,-2147.63,0.00021917,3]
[379618542,1755346242247,-480.0,0.00021917,3]
[379618544,1755346242257,-480.0,0.00021917,3]
[379618546,1755346242266,-480.0,0.00021917,3]
[379618548,1755346242275,-480.0,0.00021917,3]
[379618550,1755346242285,-480.0,0.00021917,3]
[379618551,1755346242295,-480.0,0.00021917,3]
[379618552,1755346242304,-480.0,0.00021917,3]
[379618553,1755346242313,-2733.18,0.00021917,3]
[379618554,1755346242323,-563.0,0.00021917,3]
[379618555,1755346242334,-480.0,0.00021917,3]
[379618556,1755346242344,-480.0,0.00021917,3]
[379618557,1755346242354,-480.0,0.00021917,3]
[379618558,1755346242363,-695.96,0.00021917,3]
[379618559,1755346242374,-848.2,0.00021917,3]
[379618560,1755346242383,-480.0,0.00021917,3]
[379618561,1755346242392,-480.0,0.00021917,3]
[379618562,1755346242403,-480.0,0.00021917,3]
[379618563,1755346242412,-480.0,0.00021917,3]
[379618564,1755346242421,-480.0,0.00021917,3]
[379618565,1755346242431,-1429.13,0.00021917,3]
[379618566,1755346242440,-480.0,0.00021917,3]
[379618567,1755346242450,-1024.7,0.00021917,3]
[379618569,1755346242459,-480.0,0.00021917,3]
[379618570,1755346242470,-480.0,0.00021917,3]
[379618571,1755346242480,-460.0,0.00021917,3]
[379618572,1755346242489,-480.0,0.00021917,3]
[379618574,1755346242500,-500.0,0.00021917,3]
[379618575,1755346242509,-480.0,0.00021917,3]
[379618578,1755346242519,-1242.65,0.00021917,3]
[379618580,1755346242528,-480.0,0.00021917,3]
[379618582,1755346242538,-550.83,0.00021917,3]
[379618584,1755346242547,-480.0,0.00021917,3]
[379618586,1755346242557,-525.28,0.00021917,3]
[379618588,1755346242567,-480.0,0.00021917,3]
[379618590,1755346242577,-480.0,0.00021917,3]
[379618592,1755346242586,-782.33,0.00021917,3]
[379618594,1755346242595,-480.0,0.00021917,3]
[379618596,1755346242604,-480.0,0.00021917,3]
[379618598,1755346242614,-210.59743655,0.00021917,3]
[379618599,1755346242623,-462.1417622,0.00021917,3]
[379618601,1755346242633,-480.0,0.00021917,3]
[379618603,1755346242643,-480.0,0.00021917,3]
[379618605,1755346242654,-480.0,0.00021917,3]
[379618607,1755346242664,-945.83,0.00021917,3]
[379618610,1755346242675,-480.0,0.00021917,3]
[379618612,1755346242685,-480.0,0.00021917,3]
[379618614,1755346242695,-1882.39,0.00021917,3]
[379618616,1755346242706,-480.0,0.00021917,3]
[379618618,1755346242716,-480.0,0.00021917,3]
[379618619,1755346242726,-480.0,0.00021917,3]
[379618622,1755346242736,-480.0,0.00021917,3]
[379618624,1755346242746,-6295.27,0.00021917,3]
[379618626,1755346242756,-480.0,0.00021917,3]
[379618628,1755346242766,-480.0,0.00021917,3]
[379618629,1755346242776,-695.7,0.00021917,3]
[379618632,1755346242786,-500.0,0.00021917,3]
[379618633,1755346242796,-1030.58,0.00021917,3]
[379618636,1755346242806,-480.0,0.00021917,3]
[379618637,1755346242816,-480.0,0.00021917,3]
[379618639,1755346242826,-480.0,0.00021917,3]
[379618641,1755346242835,-2589.07541892,0.00021932,2]
[379618644,1755346242846,-153.32251725,0.00021945,2]
[379618645,1755346242855,-168.0,0.00021946,2]
[379618647,1755346242865,-204.42571016,0.00021973,2]
[379618649,1755346242875,-500.0,0.00021973,2]
[379618651,1755346242885,-500.0,0.00021973,2]
[379618654,1755346242895,-500.50306476,0.00021973,2]
[379618656,1755346242905,-500.45994459,0.00021973,2]
[379618658,1755346242915,-539.96008021,0.00021973,2]
[379618659,1755346242925,-500.0,0.00021973,2]
[379618661,1755346242935,-500.0,0.00021973,2]
[379618663,1755346242944,-500.0,0.00021973,2]
[379618665,1755346242954,-500.0,0.00021973,2]
[379618667,1755346242963,-500.0,0.00021973,2]
[379618669,1755346242973,-500.0,0.00021973,2]
[379618671,1755346242982,-500.0,0.00021973,2]
[379618673,1755346242992,-500.0,0.00021973,2]
[379618675,1755346243002,-500.0,0.00021973,2]
[379618677,1755346243011,-282.22940911,0.00021973,2]
[379618679,1755346243025,-500.0,0.00021973,2]
[379618682,1755346243034,-500.0,0.00021973,2]
[379618684,1755346243044,-500.0,0.00021973,2]
[379618686,1755346243053,-500.0,0.00021973,2]
[379618688,1755346243063,-500.0,0.00021973,2]
[379618690,1755346243072,-500.0,0.00021973,2]
[379618692,1755346243081,-500.0,0.00021973,2]
[379618694,1755346243091,-500.0,0.00021973,2]
[379618696,1755346243101,-229.65860377,0.00021973,2]
[379618698,1755346243111,-500.43214558,0.00021973,2]
[379618700,1755346243120,-413.4443185,0.00021973,2]
[379618702,1755346243131,-527.70085144,0.00021973,2]
[379618704,1755346243141,-632.78703065,0.00021973,2]
[379618706,1755346243151,-500.0,0.00021973,2]
[379618708,1755346243161,-500.0,0.00021973,2]
[379618710,1755346243173,-502.95469408,0.00021973,2]
[379618712,1755346243183,-206.75283235,0.00021973,2]
[379618714,1755346243193,-502.00672859,0.00021973,2]
[379618716,1755346243202,-500.0,0.00021973,2]
[379618718,1755346243211,-500.0,0.00021973,2]
[379618720,1755346243221,-501.03053184,0.00021973,2]
[379618722,1755346243232,-153.0,0.00021973,2]
[379618724,1755346243241,-153.0,0.00021973,2]
[379618726,1755346243250,-153.0,0.00021973,2]
[379618728,1755346243260,-153.0,0.00021973,2]
[379618730,1755346243270,-153.0,0.00021973,2]
[379618731,1755346243279,-153.0,0.00021973,2]
[379618732,1755346243289,-153.0,0.00021973,2]
[379618733,1755346243299,-306.0,0.00021973,2]
[379618734,1755346243308,-153.0,0.00021973,2]
[379618735,1755346243318,-153.0,0.00021973,2]
[379618736,1755346243328,-153.0,0.00021973,2]
[379618737,1755346243337,-153.0,0.00021973,2]
[379618738,1755346243347,-151.0,0.00022,7]
[379618739,1755346243356,-164.0,0.00022,2]
[379618740,1755346243366,-168.0,0.00022,2]
[379618741,1755346243375,-153.32251725,0.00022082,2]
[379618742,1755346243385,-183.79651258,0.00022091,2]
[379618743,1755346243394,-8047.08,0.000221,7]
[379618744,1755346243404,-151.0,0.000221,5]
[379618745,1755346243415,-275.61,0.000221,2]
[379618746,1755346243425,-168.0,0.00022101,2]
[379618747,1755346243434,-182.163,0.00022159,2]
[379618748,1755346243444,-160.0,0.00022159,2]
[379618749,1755346243455,-552.91855651,0.00022173,2]
[379618750,1755346243465,-181.22071922,0.00022173,2]
[379618751,1755346243474,-501.08647519,0.00022173,2]
[379618752,1755346243484,-500.0,0.00022173,2]
[379618753,1755346243494,-500.0,0.00022173,2]
[379618754,1755346243503,-187.01279824,0.00022173,2]
[379618755,1755346243512,-500.0,0.00022173,2]
[379618756,1755346243523,-500.51507045,0.00022173,2]
[379618757,1755346243533,-500.0,0.00022173,2]
[379618758,1755346243544,-500.0,0.00022173,2]
[379618760,1755346243553,-151.0,0.00022191,7]
[379618761,1755346243563,-151.0,0.00022191,7]
[379618762,1755346243573,-151.0,0.00022191,7]
[379618764,1755346243582,-151.0,0.00022191,7]
[379618766,1755346243591,-151.0,0.00022191,7]
[379618768,1755346243601,-151.0,0.00022191,7]
[379618770,1755346243610,-300.771048,0.00022191,7]
[379618772,1755346243619,-151.0,0.00022191,7]
[379618774,1755346243628,-151.0,0.00022191,7]
[379618776,1755346243637,-151.0,0.00022191,7]
[379618778,1755346243648,-151.0,0.00022191,7]
[379618780,1755346243657,-151.0,0.00022191,7]
[379618782,1755346243667,-151.0,0.00022191,7]
[379618784,1755346243677,-151.081265,0.00022191,7]
[379618786,1755346243686,-151.0,0.00022191,7]
[379618788,1755346243695,-815.808406,0.00022191,7]
[379618790,1755346243704,-815.808406,0.00022191,7]
[379618792,1755346243714,-815.808406,0.00022191,7]
[379618794,1755346243723,-815.808406,0.00022191,7]
[379618795,1755346243733,-229.499252,0.00022191,7]
[379618797,1755346243744,-229.499252,0.00022191,7]
[379618799,1755346243753,-229.499252,0.00022191,7]
[379618802,1755346243763,-229.499252,0.00022191,7]
[379618804,1755346243772,-440.0,0.00022191,3]
[379618805,1755346243782,-151.0,0.00022191,7]
[379618807,1755346243792,-480.0,0.00022191,3]
[379618810,1755346243801,-480.0,0.00022191,3]
[379618811,1755346243811,-480.0,0.00022191,3]
[379618813,1755346243820,-460.0,0.00022191,3]
[379618815,1755346243830,-659.19,0.00022191,3]
[379618817,1755346243839,-574.10796831,0.00022191,3]
[379618819,1755346243848,-151.0,0.00022191,7]
[379618821,1755346243858,-480.0,0.00022191,3]
[379618823,1755346243867,-337.38953547,0.00022191,3]
[379618825,1755346243877,-157.067641,0.00022191,7]
[379618827,1755346243887,-157.067641,0.00022191,7]
[379618829,1755346243896,-480.0,0.00022191,3]
[379618831,1755346243906,-480.0,0.00022191,3]
[379618833,1755346243915,-480.0,0.00022191,3]
[379618835,1755346243925,-480.0,0.00022191,3]
[379618837,1755346243937,-480.0,0.00022191,3]
[379618839,1755346243948,-489.20417903,0.00022191,3]
[379618841,1755346243958,-181.52822559,0.00022191,3]
[379618843,1755346243967,-480.0,0.00022191,3]
[379618845,1755346243977,-480.0,0.00022191,3]
[379618847,1755346243986,-555.08,0.00022191,3]
[379618849,1755346243995,-480.0,0.00022191,3]
[379618851,1755346244005,-480.0,0.00022191,3]
[379618854,1755346244024,-480.0,0.00022191,3]
[379618856,1755346244034,-480.0,0.00022191,3]
[379618858,1755346244043,-340.0,0.00022191,3]
[379618860,1755346244052,-360.0,0.00022191,3]
[379618862,1755346244061,-480.0,0.00022191,3]
[379618864,1755346244070,-480.0,0.00022191,3]
[379618866,1755346244080,-380.0,0.00022191,3]
[379618868,1755346244089,-601.67489643,0.00022191,3]
[379618870,1755346244098,-480.0,0.00022191,3]
[379618872,1755346244108,-480.0,0.00022191,3]
[379618874,1755346244117,-400.0,0.00022191,3]
[379618876,1755346244127,-480.0,0.00022191,3]
[379618878,1755346244136,-480.0,0.00022191,3]
[379618880,1755346244145,-480.0,0.00022191,3]
[379618882,1755346244155,-544.063253,0.00022191,7]
[379618884,1755346244165,-480.0,0.00022191,3]
[379618886,1755346244174,-480.0,0.00022191,3]
[379618888,1755346244184,-480.0,0.00022191,3]
[379618890,1755346244194,-544.063253,0.00022191,7]
[379618892,1755346244203,-162.89920866,0.00022191,3]
[379618894,1755346244213,-480.0,0.00022191,3]
[379618896,1755346244223,-480.0,0.00022191,3]
[379618898,1755346244232,-480.0,0.00022191,3]
[379618900,1755346244241,-151.0,0.00022191,7]
[379618902,1755346244250,-480.0,0.00022191,3]
[379618904,1755346244260,-2204.49,0.00022191,3]
[379618906,1755346244269,-480.0,0.00022191,3]
[379618907,1755346244278,-480.0,0.00022191,3]
[379618909,1755346244289,-480.0,0.00022191,3]
[379618911,1755346244300,-480.0,0.00022191,3]
[379618913,1755346244311,-480.0,0.00022191,3]
[379618915,1755346244320,-480.0,0.00022191,3]
[379618917,1755346244329,-480.0,0.00022191,3]
[379618919,1755346244339,-1397.25,0.00022191,3]
[379618921,1755346244350,-480.0,0.00022191,3]
[379618923,1755346244360,-480.0,0.00022191,3]
[379618925,1755346244370,-480.0,0.00022191,3]
[379618927,1755346244379,-480.0,0.00022191,3]
[379618929,1755346244389,-600.0,0.00022191,3]
[379618931,1755346244398,-480.0,0.00022191,3]
[379618933,1755346244408,-480.0,0.00022191,3]
[379618935,1755346244418,-480.0,0.00022191,3]
[379618937,1755346244427,-480.0,0.00022191,3]
[379618939,1755346244437,-480.0,0.00022191,3]
[379618941,1755346244447,-480.0,0.00022191,3]
[379618943,1755346244457,-480.0,0.00022191,3]
[379618945,1755346244466,-480.0,0.00022191,3]
[379618947,1755346244476,-480.0,0.00022191,3]
[379618949,1755346244486,-480.0,0.00022191,3]
[379618951,1755346244496,-480.0,0.00022191,3]
[379618953,1755346244505,-480.0,0.00022191,3]
[379618955,1755346244516,-205.01763489,0.00022191,3]
[379618957,1755346244525,-480.0,0.00022191,3]
[379618959,1755346244534,-480.0,0.00022191,3]
[379618961,1755346244544,-958.96,0.00022191,3]
[379618963,1755346244554,-1495.369809,0.00022191,7]
[379618965,1755346244564,-480.0,0.00022191,3]
[379618967,1755346244573,-480.0,0.00022191,3]
[379618969,1755346244583,-1495.369809,0.00022191,7]
[379618971,1755346244593,-480.0,0.00022191,3]
[379618973,1755346244603,-479.25899,0.00022191,7]
[379618975,1755346244612,-480.0,0.00022191,3]
[379618992,1755346244762,-480.0,0.00022191,3]
[379618994,1755346244772,-479.25899,0.00022191,7]
[379618996,1755346244781,-480.0,0.00022191,3]
[379618998,1755346244791,-480.0,0.00022191,3]
[379619000,1755346244801,-480.0,0.00022191,3]
[379619001,1755346244810,-480.0,0.00022191,3]
[379619003,1755346244820,-320.0,0.00022191,3]
[379619005,1755346244830,-480.0,0.00022191,3]
[379619008,1755346244840,-231.11024166,0.00022191,3]
[379619012,1755346244871,-449.11975834,0.00022191,3]
[379619014,1755346244881,-480.0,0.00022191,3]
[379619015,1755346244890,-480.0,0.00022191,3]
[379619018,1755346244901,-442.69546477,0.00022191,3]
[379619020,1755346244911,-480.0,0.00022191,3]
[379619022,1755346244920,-480.0,0.00022191,3]
[379619024,1755346244929,-77.04940116,0.00022191,3]
[379619026,1755346244941,-402.95059884,0.00022191,3]
[379619028,1755346244951,-480.0,0.00022191,3]
[379619030,1755346244961,-480.0,0.00022191,3]
[379619032,1755346244970,-480.0,0.00022191,3]
[379619034,1755346244980,-480.0,0.00022191,3]
[379619036,1755346244989,-480.0,0.00022191,3]
[379619038,1755346244999,-480.0,0.00022191,3]
[379619040,1755346245008,-480.0,0.00022191,3]
[379619041,1755346245019,-480.0,0.00022191,3]
[379619044,1755346245031,-480.0,0.00022191,3]
[379619046,1755346245041,-1688.19,0.00022191,3]
[379619048,1755346245050,-480.0,0.00022191,3]
[379619050,1755346245059,-480.0,0.00022191,3]
[379619051,1755346245070,-480.0,0.00022191,3]
[379619053,1755346245080,-480.0,0.00022191,3]
[379619055,1755346245090,-480.0,0.00022191,3]
[379619057,1755346245100,-480.0,0.00022191,3]
[379619059,1755346245110,-480.0,0.00022191,3]
[379619061,1755346245121,-480.0,0.00022191,3]
[379619063,1755346245131,-460.0,0.00022191,3]
[379619066,1755346245141,-480.0,0.00022191,3]
[379619068,1755346245152,-480.0,0.00022191,3]
[379619070,1755346245162,-480.0,0.00022191,3]
[379619072,1755346245171,-561.35702689,0.00022191,3]
[379619074,1755346245181,-480.0,0.00022191,3]
[379619075,1755346245190,-480.0,0.00022191,3]
[379619078,1755346245200,-480.0,0.00022191,3]
[379619080,1755346245210,-301.59,0.00022191,3]
[379619082,1755346245220,-480.0,0.00022191,3]
[379619084,1755346245230,-480.0,0.00022191,3]
[379619086,1755346245239,-480.0,0.00022191,3]
[379619088,1755346245249,-480.0,0.00022191,2]
[379619090,1755346245259,-480.0,0.00022191,3]
[379619092,1755346245268,-480.0,0.00022191,3]
[379619094,1755346245277,-480.0,0.00022191,3]
[379619096,1755346245287,-480.0,0.00022191,3]
[379619098,1755346245297,-480.0,0.00022191,3]
[379619099,1755346245306,-480.0,0.00022191,3]
[379619102,1755346245317,-480.0,0.00022191,3]
[379619103,1755346245327,-480.0,0.00022191,3]
[379619105,1755346245336,-480.0,0.00022191,3]
[379619107,1755346245345,-306.6523725,0.00022191,3]
[379619109,1755346245355,-480.0,0.00022191,3]
[379619111,1755346245364,-480.0,0.00022191,3]
[379619113,1755346245374,-480.0,0.00022191,3]
[379619116,1755346245384,-480.0,0.00022191,3]
[379619118,1755346245394,-480.0,0.00022191,3]
[379619120,1755346245405,-480.0,0.00022191,3]
[379619122,1755346245414,-2066.82,0.00022191,3]
[379619124,1755346245424,-480.0,0.00022191,3]
[379619126,1755346245433,-480.0,0.00022191,3]
[379619128,1755346245443,-619.31,0.00022191,3]
[379619130,1755346245452,-480.0,0.00022191,3]
[379619132,1755346245461,-480.0,0.00022191,3]
[379619134,1755346245471,-480.0,0.00022191,3]
[379619136,1755346245480,-7010.78,0.00022191,3]
[379619138,1755346245490,-467.15045146,0.00022191,3]
[379619140,1755346245499,-480.0,0.00022191,3]
[379619142,1755346245508,-480.0,0.00022191,3]
[379619144,1755346245517,-480.0,0.00022191,3]
[379619146,1755346245527,-480.0,0.00022191,3]
[379619148,1755346245536,-3190.53,0.00022191,3]
[379619150,1755346245546,-420.0,0.00022191,3]
[379619152,1755346245555,-480.0,0.00022191,3]
[379619153,1755346245565,-480.0,0.00022191,3]
[379619155,1755346245574,-480.0,0.00022191,3]
[379619157,1755346245586,-480.0,0.00022191,3]
[379619160,1755346245596,-480.0,0.00022191,3]
[379619162,1755346245606,-480.0,0.00022191,3]
[379619163,1755346245616,-480.0,0.00022191,3]
[379619165,1755346245633,-447.20755159,0.00022191,3]
[379619167,1755346245643,-480.0,0.00022191,3]
[379619169,1755346245652,-480.0,0.00022191,3]
[379619171,1755346245661,-960.45,0.00022191,3]
[379619173,1755346245671,-480.0,0.00022191,3]
[379619175,1755346245684,-480.0,0.00022191,3]
[379619177,1755346245695,-480.0,0.00022191,3]
[379619179,1755346245704,-480.0,0.00022191,3]
[379619181,1755346245714,-659.93,0.00022191,3]
[379619183,1755346245723,-480.0,0.00022191,3]
[379619185,1755346245732,-652.38,0.00022191,3]
[379619187,1755346245741,-480.0,0.00022191,3]
[379619189,1755346245750,-480.0,0.00022191,3]
[379619191,1755346245759,-154.17205146,0.00022191,3]
[379619193,1755346245768,-480.0,0.00022191,3]
[379619195,1755346245778,-480.0,0.00022191,3]
[379619197,1755346245787,-480.0,0.00022191,3]
[379619199,1755346245797,-480.0,0.00022191,3]
[379619201,1755346245806,-1420.44,0.00022191,3]
[379619203,1755346245815,-565.44,0.00022191,3]
[379619205,1755346245826,-480.0,0.00022191,3]
[379619207,1755346245835,-878.94,0.00022191,3]
[379619209,1755346245844,-480.0,0.00022191,3]
[379619211,1755346245854,-480.0,0.00022191,3]
[379619213,1755346245865,-480.0,0.00022191,3]
[379619215,1755346245876,-2391.43,0.00022191,3]
[379619217,1755346245885,-1037.16,0.00022191,3]
[379619219,1755346245895,-480.0,0.00022191,3]
[379619221,1755346245904,-634.19,0.00022191,3]
[379619223,1755346245914,-634.16,0.00022191,3]
[379619226,1755346245926,-480.0,0.00022191,3]
[379619228,1755346245935,-224.28527995,0.00022191,3]
[379619229,1755346245944,-480.0,0.00022191,3]
[379619231,1755346245953,-624.93271084,0.00022191,3]
[379619233,1755346245963,-480.0,0.00022191,3]
[379619235,1755346245972,-303.72693309,0.00022191,3]
[379619237,1755346245982,-480.0,0.00022191,3]
[379619239,1755346245991,-151.894825,0.00022191,7]
[379619241,1755346246000,-735.24,0.00022191,3]
[379619243,1755346246010,-480.0,0.00022191,3]
[379619245,1755346246023,-480.0,0.00022191,3]
[379619247,1755346246034,-416.33910653,0.00022191,3]
[379619249,1755346246044,-480.0,0.00022191,3]
[379619252,1755346246054,-151.0,0.00022191,7]
[379619253,1755346246063,-151.0,0.00022191,7]
[379619255,1755346246072,-480.0,0.00022191,3]
[379619257,1755346246081,-480.0,0.00022191,3]
[379619259,1755346246091,-480.0,0.00022191,3]
[379619261,1755346246101,-340.0,0.00022191,3]
[379619263,1755346246111,-480.0,0.00022191,3]
[379619267,1755346246121,-480.0,0.00022191,3]
[379619268,1755346246138,-480.0,0.00022191,3]
[379619270,1755346246148,-480.0,0.00022191,3]
[379619272,1755346246157,-480.0,0.00022191,3]
[379619275,1755346246167,-480.0,0.00022191,3]
[379619277,1755346246184,-268.388311,0.00022191,7]
[379619279,1755346246194,-480.0,0.00022191,3]
[379619281,1755346246203,-480.0,0.00022191,3]
[379619283,1755346246213,-268.388311,0.00022191,7]
[379619285,1755346246224,-480.0,0.00022191,3]
[379619287,1755346246233,-480.0,0.00022191,3]
[379619288,1755346246242,-420.0,0.00022191,3]
[379619291,1755346246251,-1325.05,0.00022191,3]
[379619292,1755346246260,-400.0,0.00022191,3]
[379619294,1755346246270,-979.07992,0.00022191,7]
[379619296,1755346246279,-979.07992,0.00022191,7]
[379619298,1755346246288,-480.0,0.00022191,3]
[379619301,1755346246298,-599.73,0.00022191,3]
[379619302,1755346246307,-480.0,0.00022191,3]
[379619304,1755346246317,-480.0,0.00022191,3]
[379619306,1755346246327,-480.0,0.00022191,3]
[379619308,1755346246336,-979.07992,0.00022191,7]
[379619310,1755346246345,-979.07992,0.00022191,7]
[379619313,1755346246355,-151.0,0.00022191,7]
[379619315,1755346246364,-1826.46,0.00022191,3]
[379619316,1755346246373,-830.59981266,0.00022191,3]
[379619322,1755346246542,-1446.143164,0.00022191,3]
[379619323,1755346246763,-4687.38702334,0.00022191,3]
[379619324,1755346246773,-480.0,0.00022191,3]
[379619325,1755346246783,-480.0,0.00022191,3]
[379619326,1755346246792,-151.0,0.00022191,7]
[379619327,1755346246802,-480.0,0.00022191,3]
[379619328,1755346246811,-480.0,0.00022191,3]
[379619329,1755346246821,-480.0,0.00022191,3]
[379619330,1755346246830,-480.0,0.00022191,3]
[379619331,1755346246839,-480.0,0.00022191,3]
[379619332,1755346246849,-575.76,0.00022191,3]
[379619333,1755346246858,-480.0,0.00022191,3]
[379619334,1755346246867,-928.89,0.00022191,3]
[379619335,1755346246878,-151.0,0.00022191,7]
[379619336,1755346246887,-480.0,0.00022191,3]
[379619337,1755346246896,-480.0,0.00022191,3]
[379619338,1755346246906,-480.0,0.00022191,3]
[379619339,1755346246916,-151.0,0.00022191,7]
[379619340,1755346246926,-480.0,0.00022191,3]
[379619341,1755346246935,-542.48,0.00022191,3]
[379619342,1755346246945,-1000.83,0.00022191,3]
[379619343,1755346246955,-480.0,0.00022191,3]
[379619344,1755346246965,-480.0,0.00022191,3]
[379619345,1755346246976,-480.0,0.00022191,3]
[379619346,1755346246985,-480.0,0.00022191,3]
[379619347,1755346246994,-480.0,0.00022191,3]
[379619348,1755346247003,-340.0,0.00022191,3]
[379619349,1755346247013,-999.71,0.00022191,3]
[379619350,1755346247027,-737.57,0.00022191,3]
[379619351,1755346247036,-480.0,0.00022191,3]
[379619352,1755346247046,-151.805446,0.00022191,7]
[379619353,1755346247055,-480.0,0.00022191,3]
[379619354,1755346247065,-282.56240627,0.00022191,3]
[379619355,1755346247074,-809.02,0.00022191,3]
[379619356,1755346247083,-634.38,0.00022191,3]
[379619357,1755346247095,-4462.77,0.00022191,3]
[379619358,1755346247105,-480.0,0.00022191,3]
[379619359,1755346247114,-480.0,0.00022191,3]
[379619360,1755346247124,-480.0,0.00022191,3]
[379619361,1755346247133,-480.0,0.00022191,3]
[379619362,1755346247143,-480.0,0.00022191,3]
[379619363,1755346247153,-480.0,0.00022191,3]
[379619364,1755346247162,-480.0,0.00022191,3]
[379619365,1755346247171,-420.0,0.00022191,3]
[379619366,1755346247180,-534.17806943,0.00022191,3]
[379619367,1755346247189,-10934.7,0.00022191,3]
[379619368,1755346247198,-714.49,0.00022191,3]
[379619369,1755346247207,-2097.02,0.00022191,3]
[379619370,1755346247216,-380.0,0.00022191,3]
[379619371,1755346247226,-1046.56,0.00022191,3]
[379619372,1755346247235,-480.0,0.00022191,3]